fUSD/lending_fUSD_20241118
["ID","MTS","AMOUNT","RATE_DAILY","PERIOD"]
[342456635,1731888094525,1448.84,8.219e-05,2]
[342456654,1731888632292,-904.02,9.007e-05,2]
[342456655,1731888632302,-2211.04,9.044e-05,2]
[342456656,1731888632311,-424.22,9.094e-05,2]
[342456657,1731888632320,-250.0,9.096e-05,2]
[342456658,1731888632329,-438.24,9.123e-05,2]
[342456659,1731888632338,-1000.0,9.145e-05,2]
[342456660,1731888632347,-250.0,9.223e-05,2]
[342456661,1731888632357,-250.0,9.261e-05,2]
[342456662,1731888632367,-163.15,9.46e-05,2]
[342456663,1731888632376,-247.78,9.565e-05,2]
[342456664,1731888632385,-550.64,9.641e-05,2]
[342456665,1731888632395,-362.4,9.778e-05,2]
[342456666,1731888632404,-288.0,9.801e-05,2]
[342456667,1731888632413,-150.0,9.899e-05,2]
[342456668,1731888632422,-4629.0973,9.9e-05,2]
[342456669,1731888632431,-1196.535,9.9e-05,2]
[342456670,1731888632440,-786.2575,9.9e-05,2]
[342456671,1731888632449,-178.899,9.9e-05,2]
[342456672,1731888632458,-6787.7181,9.9e-05,2]
[342456673,1731888632467,-508.3190042,9.9e-05,2]
[342456674,1731888632476,-816.3642,9.9e-05,2]
[342456675,1731888632488,-2652.63,9.9e-05,2]
[342456676,1731888632497,-946.8323,9.9e-05,2]
[342456677,1731888632506,-2028.1994,9.9e-05,2]
[342456678,1731888632516,-8016.1786,9.9e-05,2]
[342456679,1731888632525,-1480.356,9.9e-05,2]
[342456680,1731888632535,-200.0,9.958e-05,2]
[342456681,1731888632544,-200.0,9.961e-05,2]
[342456682,1731888632553,-200.0,9.965e-05,2]
[342456683,1731888632562,-200.0,9.971e-05,2]
[342456684,1731888632571,-4031.0,9.973e-05,2]
[342456685,1731888632580,-500.37878878,9.973e-05,2]
[342456686,1731888632589,-500.0,9.973e-05,2]
[342456687,1731888632598,-200.0,9.987e-05,2]
[342456688,1731888632607,-3969.50407056,9.99e-05,2]
[342456689,1731888632616,-150.01,9.999e-05,2]
[342456690,1731888632625,-1038.27707708,9.999e-05,2]
[342456691,1731888632634,-500.0,9.999e-05,2]
[342456692,1731888632643,-221082.10094184,0.0001,2]
[342456693,1731888632652,-5378.29462987,0.0001,2]
[342456694,1731888632661,-74390.6197106,0.0001,2]
[342456695,1731888632689,-650.982374,0.0001,2]
[342456696,1731888632713,-6199.39264218,0.0001,2]
[342456697,1731888632724,-867.6,0.0001,2]
[342456698,1731888632736,-3078.1,0.0001,2]
[342456703,1731888638272,-188.74365935,9.973e-05,2]
[342456704,1731888638282,-976.96171257,0.0001,2]
[342456705,1731888638294,-4473.06322101,0.0001,2]
[342456706,1731888638325,-315.7018434,0.0001,2]
[342456707,1731888638336,-172769.70599932,0.0001,2]
[342456708,1731888638485,-4995106.20122879,0.0001,2]
[342456709,1731888638497,-1366.11334518,0.0001,2]
[342456710,1731888638508,-10056.29606246,0.0001,2]
[342456711,1731888638520,-4258.23799108,0.0001,2]
[342456712,1731888638539,-2440.0,0.0001,2]
[342456713,1731888638551,-393.01182328,0.0001,2]
[342456714,1731888638594,-371.49733027,0.0001,2]
[342456715,1731888638606,-255.18236197,0.0001,2]
[342456716,1731888638617,-684.3000014,0.0001,2]
[342456725,1731888640434,-5728.04098706,0.0001,2]
[342456726,1731888640446,-3384.35916527,0.0001,2]
[342456732,1731888643261,-300.0,0.0001,2]
[342456733,1731888643316,-2956.6021644,0.0001,2]
[342456734,1731888643328,-3214.49038644,0.0001,2]
[342456735,1731888643371,-805.6528661,0.0001,2]
[342456736,1731888643384,-1744.911585,0.0001,2]
[342456737,1731888643399,-1360.25000057,0.0001,2]
[342456738,1731888643415,-1535.89943323,0.0001,2]
[342456739,1731888643446,-3419.56031676,0.0001,2]
[342456740,1731888643458,-5992.10301283,0.0001,2]
[342456741,1731888643535,-16647.22592975,0.0001,2]
[342456742,1731888643549,-37112.9402834,0.0001,2]
[342456743,1731888643562,-80973.7309759,0.0001,2]
[342456744,1731888643575,-15588.70238118,0.0001,2]
[342456745,1731888643588,-10779.8401,0.0001,2]
[342456750,1731888646369,-5157.8190213,0.0001,2]
[342456751,1731888646382,-386078.36332862,0.0001,2]
[342456752,1731888646394,-1349470.93846736,0.0001,2]
[342456753,1731888646478,-6833.03468623,0.0001,2]
[342456754,1731888646493,-4521.66041327,0.0001,2]
[342456755,1731888646506,-1271.24306892,0.0001,2]
[342456756,1731888646583,-6721.81795954,0.0001,2]
[342456757,1731888646596,-2025.51240011,0.0001,2]
[342456758,1731888646948,-475.10999996,0.0001,2]
[342456759,1731888646960,-449.0553384,0.0001,2]
[342456760,1731888646972,-743.3523116,0.0001,2]
[342456761,1731888646987,-726.35761011,0.0001,2]
[342456762,1731888647011,-5848.40729355,0.0001,2]
[342456763,1731888835074,1376.39,8.219e-05,2]
[342456765,1731889405414,500.0,8.153e-05,2]
[342456767,1731889558719,-223.58,8.7e-05,2]
[342456768,1731889558740,-3203.82,8.823e-05,2]
[342456769,1731889558760,-5807.54322175,8.917e-05,2]
[342456770,1731889558781,-219.12,8.917e-05,2]
[342456771,1731889558806,-262.4,8.926e-05,2]
[342456772,1731889558827,-250.0,8.967e-05,2]
[342456773,1731889558849,-250.0,8.967e-05,2]
[342456774,1731889558870,-167.77,9.041e-05,2]
[342456775,1731889558892,-1000.0,9.053e-05,2]
[342456776,1731889558914,-445.0064,9.098e-05,2]
[342456777,1731889558935,-245.00911,9.538e-05,2]
[342456778,1731889558956,-449.0,9.57e-05,2]
[342456779,1731889558977,-603.74,9.67e-05,2]
[342456780,1731889558997,-1026.51841255,9.8e-05,2]
[342456781,1731889559018,-1094.86253187,9.8e-05,2]
[342456782,1731889559038,-976.4793,9.9e-05,2]
[342456783,1731889559059,-1000.0,9.9e-05,2]
[342456784,1731889559080,-2500.0,9.9e-05,2]
[342456785,1731889559103,-11773.18598238,9.99e-05,2]
[342456786,1731889559122,-1001.36135611,9.999e-05,2]
[342456787,1731889559144,-293.89498103,9.999e-05,2]
[342456788,1731889559167,-519.13853854,9.999e-05,2]
[342456789,1731889559190,-1263.37189023,9.999e-05,3]
[342456790,1731889559211,-1432.66,9.999e-05,2]
[342456791,1731889559232,-150.0,9.999e-05,2]
[342456792,1731889559253,-500.0,9.999e-05,2]
[342456793,1731889559278,-39325.87918379,0.0001,2]
[342456794,1731889594114,-1137.9893849,9.8e-05,2]
[342456795,1731889594136,-259.56926927,9.999e-05,2]
[342456796,1731889594158,-1948.08926856,0.0001,2]
[342456804,1731889780877,1307.57,8.219e-05,2]
[342456823,1731889831462,-150.00000001,9e-05,2]
[342456824,1731889831473,-400.0,9e-05,3]
[342456825,1731889831482,-900.0,9.1e-05,3]
[342456826,1731889831493,-1300.0,9.2e-05,3]
[342456827,1731889831502,-1800.0,9.3e-05,3]
[342456828,1731889831512,-1000.0,9.33e-05,2]
[342456829,1731889831522,-2200.0,9.4e-05,3]
[342456830,1731889831531,-400.0,9.5e-05,3]
[342456831,1731889831541,-400.0,9.6e-05,3]
[342456832,1731889831552,-400.0,9.7e-05,3]
[342456833,1731889831563,-1076.49832602,9.8e-05,2]
[342456834,1731889831572,-400.0,9.8e-05,3]
[342456835,1731889831581,-250.0,9.872e-05,2]
[342456836,1731889831591,-250.0,9.873e-05,2]
[342456837,1731889831602,-800.0,9.9e-05,3]
[342456838,1731889831611,-259.56926926,9.999e-05,2]
[342456839,1731889831622,-4645.65624002,0.0001,2]
[342456840,1731889831633,-231970.22805185,0.0001,2]
[342456841,1731889831649,-2367.60000082,0.0001,2]
[342456842,1731889831660,-1200.0,0.0001,2]
[342456843,1731889831672,-3367.1173,0.0001,2]
[342456844,1731889831685,-274.93438583,0.0001,2]
[342456845,1731889831696,-875.314314,0.0001,2]
[342456846,1731889831708,-323.82224739,0.0001,2]
[342456847,1731889831719,-1407.06112803,0.0001,2]
[342456848,1731889831731,-947.31015434,0.0001,2]
[342456849,1731889831742,-11939.71989514,0.0001,2]
[342456850,1731889831873,-1853.41867892,0.0001,2]
[342456851,1731889831885,-3085.56798374,0.0001,2]
[342456852,1731889831897,-1186.48373938,0.0001,2]
[342456853,1731889831912,-3650.6000008,0.0001,2]
[342456854,1731889831924,-299.6900001,0.0001,2]
[342456856,1731889837480,-85405.0307064,0.0001,2]
[342456857,1731889837771,-109636.27222288,0.0001,2]
[342456858,1731889837780,-41891.70879067,0.0001,2]
[342456859,1731889837792,-452.64,0.0001,2]
[342456860,1731889837803,-5622.49853044,0.0001,2]
[342456861,1731889837815,-1562.92844443,0.0001,2]
[342456862,1731889837835,-317.845,0.0001,2]
[342456863,1731889837847,-1120.66502401,0.0001,2]
[342456864,1731889837858,-3746.53404951,0.0001,2]
[342456865,1731889837884,-4995106.20122879,0.0001,2]
[342456866,1731889837896,-3007.55686937,0.0001,2]
[342456867,1731889837908,-879.14563992,0.0001,2]
[342456868,1731889837946,-612.18240239,0.0001,2]
[342456869,1731889837957,-500.0,0.0001,2]
[342456870,1731889837968,-293.10632078,0.0001,2]
[342456920,1731889839438,-1362.7092578,0.0001,2]
[342456921,1731889839450,-5515.90098311,0.0001,2]
[342456922,1731889839462,-14804.30193189,0.0001,2]
[342456923,1731889839474,-7987.6482867,0.0001,2]
[342456924,1731889839495,-1718.57543512,0.0001,2]
[342456925,1731889839506,-270.525589,0.0001,2]
[342456926,1731889839518,-3185.65302144,0.0001,2]
[342456927,1731889839529,-337.374,0.0001,2]
[342456928,1731889839554,-941.90324559,0.0001,2]
[342456929,1731889839617,-1244.09212786,0.0001,2]
[342456930,1731889839632,-703.61495278,0.0001,2]
[342456931,1731889839643,-602.7973578,0.0001,2]
[342456932,1731889839655,-1133.708,0.0001,2]
[342456933,1731889839674,-1084.14,0.0001,2]
[342456934,1731889842387,-1200.31549381,0.0001,2]
[342456935,1731889842399,-3333.6090474,0.0001,2]
[342456936,1731889842450,-411.7493109,0.0001,2]
[342456937,1731889842461,-1323.34911343,0.0001,2]
[342456938,1731889842472,-445.70504057,0.0001,2]
[342456939,1731889842515,-2846.00596719,0.0001,2]
[342456940,1731889842527,-382.42970356,0.0001,2]
[342456941,1731889842576,-7483.98605945,0.0001,2]
[342456942,1731889842638,-1605.35180376,0.0001,2]
[342456943,1731889842651,-5015.50646341,0.0001,2]
[342456944,1731889842663,-1978.99916936,0.0001,2]
[342456945,1731889842674,-947.300632,0.0001,2]
[342456946,1731889842686,-1751.0000005,0.0001,2]
[342456947,1731889842698,-2198.31428799,0.0001,2]
[342456948,1731889842709,-735.896,0.0001,2]
[342456949,1731889842721,-404.3835385,0.0001,2]
[342456950,1731889842732,-1872.08172289,0.0001,2]
[342456951,1731889842752,-114965.92800001,0.0001,2]
[342456953,1731889842764,-35059.03070488,0.0001,2]
[342456955,1731889842775,-1112.32159237,0.0001,2]
[342456958,1731889842787,-369.04840763,0.0001,2]
[342456963,1731889842827,-7077.05635471,0.0001,2]
[342456974,1731889845509,-9033.88118785,0.0001,2]
[342456975,1731889845521,-216189.45558496,0.0001,2]
[342456976,1731889845533,-1693.64247555,0.0001,2]
[342456977,1731889845544,-3288.67492828,0.0001,2]
[342456978,1731889845556,-2551.34283661,0.0001,2]
[342456979,1731889845574,-11772.95709027,0.0001,2]
[342456980,1731889845585,-1447.96289974,0.0001,2]
[342456981,1731889845690,-11260.66012978,0.0001,2]
[342456982,1731889845706,-383666.54515925,0.0001,2]
[342456983,1731889845718,-347.52674903,0.0001,2]
[342456984,1731889845730,-2439.28005778,0.0001,2]
[342456986,1731890037117,159.58,7.795e-05,2]
[342456991,1731890557560,1242.19,8.219e-05,2]
[342456992,1731890735109,-209.92,8.964e-05,2]
[342456993,1731890735130,-300.0,8.974e-05,2]
[342456994,1731890735152,-23900.0,8.975e-05,2]
[342456995,1731890735173,-667.33081825,8.975e-05,2]
[342456996,1731890751110,400.0,8e-05,2]
[342456999,1731890834492,-250.0,9.194e-05,2]
[342457000,1731890834518,-1000.0,9.241e-05,2]
[342457001,1731890834540,-6322.89820578,9.241e-05,2]
[342457002,1731890834561,-520.68,9.491e-05,2]
[342457003,1731890834583,-150.0,9.507e-05,2]
[342457004,1731890834605,-300.0,9.537e-05,2]
[342457005,1731890834626,-182.357146,9.538e-05,2]
[342457006,1731890834647,-556.535038,9.538e-05,2]
[342457007,1731890834668,-1043.029999,9.538e-05,2]
[342457008,1731890834690,-250.0,9.6e-05,2]
[342457009,1731890834712,-500.0,9.606e-05,2]
[342457010,1731890834734,-591.61,9.606e-05,2]
[342457011,1731890834754,-556.535038,9.657e-05,2]
[342457012,1731890834778,-1043.029999,9.657e-05,2]
[342457013,1731890834799,-1101.0,9.7e-05,2]
[342457014,1731890834822,-222.0,9.749e-05,2]
[342457015,1731890834843,-222.0,9.749e-05,2]
[342457016,1731890834865,-222.0,9.749e-05,2]
[342457017,1731890834886,-233.67,9.749e-05,2]
[342457018,1731890834907,-222.0,9.776e-05,2]
[342457019,1731890834928,-182.357146,9.776e-05,2]
[342457020,1731890834949,-556.535038,9.776e-05,2]
[342457021,1731890834970,-1043.029999,9.776e-05,2]
[342457022,1731890834992,-590.08,9.86e-05,2]
[342457023,1731890835015,-556.535038,9.896e-05,2]
[342457024,1731890835037,-1043.029999,9.896e-05,2]
[342457025,1731890835058,-150.0,9.899e-05,2]
[342457026,1731890835078,-1275.2082,9.9e-05,2]
[342457027,1731890835098,-23760.0354541,9.9e-05,2]
[342457039,1731891031873,-233.67,9.611e-05,2]
[342457040,1731891031884,-300.0,9.899e-05,2]
[342457041,1731891031895,-5763.6786459,9.9e-05,2]
[342457042,1731891031909,-1486.6979,9.9e-05,2]
[342457043,1731891031919,-209.9511,9.9e-05,2]
[342457044,1731891031929,-292.9109,9.9e-05,2]
[342457045,1731891031946,-400.0,9.9e-05,2]
[342457046,1731891031956,-400.0,9.9e-05,3]
[342457047,1731891031966,-500.0,9.973e-05,2]
[342457048,1731891031976,-1146.128,9.999e-05,2]
[342457049,1731891031986,-500.0,9.999e-05,2]
[342457050,1731891031995,-10878.9811034,0.0001,2]
[342457051,1731891032007,-932.62286945,0.0001,2]
[342457052,1731891032022,-1173.88307995,0.0001,2]
[342457053,1731891032038,-2134.63112316,0.0001,2]
[342457054,1731891032060,-628.10253077,0.0001,2]
[342457055,1731891032072,-64159.48749849,0.0001,2]
[342457062,1731891037688,-500.0,9.973e-05,2]
[342457063,1731891037702,-95629.46443113,0.0001,2]
[342457064,1731891037713,-4181.09061602,0.0001,2]
[342457065,1731891037724,-210813.59768954,0.0001,2]
[342457066,1731891037739,-742.11629914,0.0001,2]
[342457067,1731891037868,-4995106.20122879,0.0001,2]
[342457068,1731891037882,-7688.5827429,0.0001,2]
[342457069,1731891037918,-257.82237684,0.0001,2]
[342457070,1731891038136,-2786.36120212,0.0001,2]
[342457071,1731891038151,-2698.58278306,0.0001,2]
[342457072,1731891038164,-3065.34814042,0.0001,2]
[342457213,1731891039745,-2721.27674375,0.0001,2]
[342457214,1731891039759,-9096.64373114,0.0001,2]
[342457215,1731891039773,-8947.21879473,0.0001,2]
[342457216,1731891039787,-8943.78386462,0.0001,2]
[342457217,1731891039800,-9077.54866152,0.0001,2]
[342457218,1731891039814,-8943.84023489,0.0001,2]
[342457219,1731891039841,-339.5935685,0.0001,2]
[342457220,1731891039855,-3325.9663336,0.0001,2]
[342457221,1731891039962,-5007.62721486,0.0001,2]
[342457222,1731891039995,-1082.68755005,0.0001,2]
[342457223,1731891040008,-450.0,0.0001,2]
[342457224,1731891040023,-875.81996469,0.0001,2]
[342457225,1731891040036,-686.1,0.0001,2]
[342457226,1731891040080,-369.67071928,0.0001,2]
[342457230,1731891042714,-3985.8231348,0.0001,2]
[342457231,1731891042726,-3327.45669519,0.0001,2]
[342457232,1731891042738,-2678.51232755,0.0001,2]
[342457233,1731891042886,-90287.64548581,0.0001,2]
[342457234,1731891042987,-19926.00028477,0.0001,2]
[342457235,1731891042999,-9026.6,0.0001,2]
[342457301,1731891045903,-63978.55818034,0.0001,2]
[342457302,1731891045916,-2201.4,0.0001,2]
[342457303,1731891045946,-2336.72778961,0.0001,2]
[342457304,1731891045969,-777.2687132,0.0001,2]
[342457305,1731891045981,-125240.24784,0.0001,2]
[342457306,1731891045992,-8867.15170299,0.0001,2]
[342457307,1731891046003,-25082.86109472,0.0001,2]
[342457308,1731891046014,-33282.70631421,0.0001,2]
[342457309,1731891046027,-378.37294716,0.0001,2]
[342457310,1731891046042,-813.5,0.0001,2]
[342457311,1731891046154,-685.65342,0.0001,2]
[342457312,1731891046166,-961.05460762,0.0001,2]
[342457313,1731891046180,-8553.32442218,0.0001,2]
[342457314,1731891046194,-1615.08456686,0.0001,2]
[342457315,1731891046208,-1915.44941856,0.0001,2]
[342457316,1731891046224,-6725.55733571,0.0001,2]
[342457317,1731891046235,-8512.82883593,0.0001,2]
[342457323,1731891247670,1180.08,8.219e-05,2]
[342457324,1731891351886,245.57405294,0.00023,120]
[342457326,1731891662876,2347.37,0.0002,60]
[342457327,1731891696353,1800.0,0.00023,120]
[342457328,1731891815629,500.0,8.152e-05,2]
[342457329,1731891816097,500.0,8.153e-05,2]
[342457330,1731891987667,1121.07,8.219e-05,2]
[342457331,1731892033133,-2748.68,8.686e-05,2]
[342457332,1731892033155,-2185.47,8.697e-05,2]
[342457333,1731892033176,-250.0,8.697e-05,2]
[342457334,1731892033197,-200.0,8.713e-05,2]
[342457335,1731892033218,-167.32,8.735e-05,2]
[342457336,1731892033238,-904.06,8.769e-05,2]
[342457337,1731892033259,-300.0,8.81e-05,2]
[342457338,1731892033280,-2000.0,8.811e-05,2]
[342457339,1731892033302,-632.06,8.845e-05,2]
[342457340,1731892033324,-1219.45506125,8.864e-05,2]
[342457357,1731892231821,-690.34493875,8.864e-05,2]
[342457358,1731892231831,-1000.0,8.908e-05,2]
[342457359,1731892231840,-23.07245075,8.942e-05,2]
[342457360,1731892231851,-1269.9383457,8.942e-05,2]
[342457361,1731892231863,-167.03920355,8.942e-05,2]
[342457362,1731892231872,-250.0,8.998e-05,2]
[342457363,1731892231882,-200.0,9e-05,3]
[342457364,1731892231891,-23890.0,9.044e-05,2]
[342457365,1731892231900,-500.0,9.1e-05,3]
[342457366,1731892231909,-700.0,9.2e-05,3]
[342457367,1731892231920,-1000.0,9.3e-05,3]
[342457368,1731892231932,-1200.0,9.4e-05,3]
[342457369,1731892231942,-200.0,9.5e-05,3]
[342457370,1731892231951,-200.0,9.6e-05,3]
[342457371,1731892231961,-150.0,9.669e-05,2]
[342457372,1731892231973,-29999.99,9.67e-05,2]
[342457373,1731892231982,-4777.42,9.67e-05,2]
[342457374,1731892231991,-209.91,9.67e-05,2]
[342457375,1731892232001,-522.01,9.67e-05,2]
[342457376,1731892232011,-150.99,9.67e-05,2]
[342457377,1731892232021,-3830.51,9.67e-05,2]
[342457378,1731892232030,-150.99,9.67e-05,2]
[342457379,1731892232039,-616.64,9.67e-05,2]
[342457380,1731892232049,-200.0,9.7e-05,3]
[342457381,1731892232058,-200.0,9.8e-05,3]
[342457382,1731892232067,-1314.8218,9.9e-05,2]
[342457383,1731892232077,-5251.16,9.9e-05,2]
[342457384,1731892232086,-2891.6467,9.9e-05,2]
[342457385,1731892232096,-798.20859406,9.9e-05,2]
[342457386,1731892232105,-1769.4575,9.9e-05,2]
[342457387,1731892232114,-2063.1131,9.9e-05,2]
[342457388,1731892232124,-700.0,9.9e-05,3]
[342457389,1731892232133,-632.06,9.951e-05,2]
[342457390,1731892232143,-500.0,9.973e-05,2]
[342457391,1731892232153,-758.42,9.999e-05,2]
[342457392,1731892232162,-1170.759,9.999e-05,2]
[342457393,1731892232170,-3836.37131148,0.0001,2]
[342457394,1731892232180,-37078.84278385,0.0001,2]
[342457395,1731892232192,-2401.8227123,0.0001,2]
[342457396,1731892232203,-499.34874343,0.0001,2]
[342457397,1731892232214,-2393.62780341,0.0001,2]
[342457398,1731892232231,-843.29714377,0.0001,2]
[342457399,1731892232357,-4718.55051476,0.0001,2]
[342457400,1731892232369,-36952.18324875,0.0001,2]
[342457401,1731892232384,-2567.75290929,0.0001,2]
[342457402,1731892232395,-6454.71715691,0.0001,2]
[342457403,1731892232422,-187152.49385038,0.0001,2]
[342457404,1731892232433,-412.56528149,0.0001,2]
[342457405,1731892232444,-2150.0,0.0001,2]
[342457406,1731892232456,-841.25800633,0.0001,2]
[342457407,1731892232477,-520.41993916,0.0001,2]
[342457408,1731892232488,-11762.57128165,0.0001,2]
[342457409,1731892232499,-618.95114557,0.0001,2]
[342457410,1731892237855,-2817.9,0.0001,2]
[342457411,1731892237948,-156965.06426241,0.0001,2]
[342457412,1731892237959,-4892876.56225488,0.0001,2]
[342457413,1731892238018,-27020.4948462,0.0001,2]
[342457414,1731892238030,-6363.01250456,0.0001,2]
[342457415,1731892238042,-3149.27176229,0.0001,2]
[342457416,1731892238053,-4991.02722626,0.0001,2]
[342457417,1731892238065,-3631.13134079,0.0001,2]
[342457418,1731892238077,-470.29999998,0.0001,2]
[342457432,1731892240168,-420.76,9.842e-05,2]
[342457433,1731892240178,-926.95740005,0.0001,2]
[342457434,1731892240189,-2354.71872296,0.0001,2]
[342457435,1731892240201,-471.38815852,0.0001,2]
[342457436,1731892240220,-445.05999992,0.0001,2]
[342457437,1731892240247,-7119.603906,0.0001,2]
[342457447,1731892242836,-2228.21637508,0.0001,2]
[342457448,1731892242848,-9017.499,0.0001,2]
[342457449,1731892242859,-442.70249532,0.0001,2]
[342457450,1731892242975,-4990.07248337,0.0001,2]
[342457451,1731892243138,-2994.00229227,0.0001,2]
[342457452,1731892245825,-5743.37649653,0.0001,2]
[342457453,1731892245894,-383.19319023,0.0001,2]
[342457454,1731892245956,-500.0,0.0001,2]
[342457455,1731892246141,-3514.33299655,0.0001,2]
[342457456,1731892246152,-2605.29659565,0.0001,2]
[342457457,1731892246253,-2546.17611879,0.0001,2]
[342457463,1731892254737,161.99,7.899e-05,2]
[342457464,1731892327558,215.68,8.219e-05,2]
[342457465,1731892412211,500.0,8.153e-05,2]
[342457467,1731892699321,1065.01,8.219e-05,2]
[342457507,1731893119568,202.0,8e-05,2]
[342457508,1731893238143,-210.39,8.999e-05,2]
[342457509,1731893238169,-3022.20221153,9.042e-05,2]
[342457519,1731893324847,6547.58388223,9.8e-06,2]
[342457525,1731893361098,-3404.818116,8.951e-05,2]
[342457526,1731893362099,-5057.21823059,8.951e-05,2]
[342457538,1731893432745,-250.0,8.833e-05,2]
[342457539,1731893432756,-250.0,8.833e-05,2]
[342457540,1731893432769,-36.83568415,8.951e-05,2]
[342457544,1731893432815,-2365.60000068,8.951e-05,2]
[342457545,1731893432826,-300.0,8.951e-05,2]
[342457546,1731893432870,-3726.84796858,8.951e-05,2]
[342457547,1731893432880,-300.0,9e-05,3]
[342457548,1731893432890,-2003.38778847,9.042e-05,2]
[342457549,1731893432900,-1000.0,9.086e-05,2]
[342457550,1731893432910,-300.0,9.099e-05,2]
[342457551,1731893432919,-600.0,9.1e-05,3]
[342457552,1731893432929,-900.0,9.2e-05,3]
[342457553,1731893432938,-1300.0,9.3e-05,3]
[342457554,1731893432948,-1006.86,9.306e-05,2]
[342457555,1731893432959,-1600.0,9.4e-05,3]
[342457556,1731893432969,-300.0,9.5e-05,3]
[342457557,1731893432979,-300.0,9.6e-05,3]
[342457558,1731893432991,-172.33,9.67e-05,2]
[342457559,1731893433000,-2781.15,9.67e-05,2]
[342457560,1731893433011,-300.0,9.7e-05,3]
[342457561,1731893433020,-300.0,9.8e-05,3]
[342457562,1731893433029,-582.49018287,9.8e-05,2]
[342457563,1731893433039,-209.9511,9.9e-05,2]
[342457564,1731893433049,-189.375,9.9e-05,2]
[342457565,1731893433059,-292.9109,9.9e-05,2]
[342457566,1731893433069,-755.0,9.9e-05,3]
[342457567,1731893433079,-1000.0,9.9e-05,2]
[342457568,1731893433089,-315.412307,9.951e-05,2]
[342457569,1731893433100,-200.0,9.962e-05,2]
[342457570,1731893433111,-315.412307,9.964e-05,2]
[342457571,1731893433121,-604.26367321,9.973e-05,2]
[342457572,1731893433131,-500.0,9.973e-05,2]
[342457573,1731893433141,-200.0,9.979e-05,2]
[342457574,1731893433151,-315.412307,9.98e-05,2]
[342457575,1731893433161,-2481.6891875,9.98e-05,2]
[342457576,1731893433172,-200.0,9.988e-05,2]
[342457577,1731893433182,-315.412307,9.991e-05,2]
[342457578,1731893433193,-315.412307,9.995e-05,2]
[342457579,1731893433204,-165.36673957,9.999e-05,2]
[342457580,1731893433214,-1165.833,9.999e-05,2]
[342457581,1731893433224,-1380.54705924,9.999e-05,3]
[342457582,1731893433235,-747.66,9.999e-05,2]
[342457583,1731893433246,-163769.48230691,0.0001,2]
[342457584,1731893433256,-3452.73418033,0.0001,2]
[342457585,1731893433272,-236853.8203912,0.0001,2]
[342457586,1731893433285,-21585.02915154,0.0001,2]
[342457610,1731893438284,-1090.74995,0.0001,2]
[342457612,1731893438296,-534.4333347,0.0001,2]
[342457614,1731893438308,-5114297.11245396,0.0001,2]
[342457616,1731893438321,-450723.93565385,0.0001,2]
[342457617,1731893438460,-2459.14878265,0.0001,2]
[342457618,1731893438471,-752.79442373,0.0001,2]
[342457619,1731893438484,-4639.77700316,0.0001,2]
[342457620,1731893438495,-10115.59893327,0.0001,2]
[342457623,1731893440104,-68005.72641153,0.0001,2]
[342457627,1731893440293,-490.33168221,0.0001,2]
[342457628,1731893440307,-2707.31275712,0.0001,2]
[342457629,1731893440319,-621.54019279,0.0001,2]
[342457630,1731893440331,-429.76,0.0001,2]
[342457631,1731893440345,-775.0316849,0.0001,2]
[342457632,1731893440356,-455.3,0.0001,2]
[342457633,1731893440368,-253.94130098,0.0001,2]
[342457634,1731893440450,-28443.3045464,0.0001,2]
[342457635,1731893440462,-4512.6169032,0.0001,2]
[342457640,1731893443363,-2969.05809688,0.0001,2]
[342457641,1731893443375,-2641.93213927,0.0001,2]
[342457642,1731893443390,-631.73,0.0001,2]
[342457643,1731893443435,-4071.90712242,0.0001,2]
[342457644,1731893443447,-16697.2390424,0.0001,2]
[342457645,1731893443490,-3025.55159345,0.0001,2]
[342457646,1731893443502,-2007.67764251,0.0001,2]
[342457650,1731893446465,-7264.75128095,0.0001,2]
[342457651,1731893446477,-1478.04794869,0.0001,2]
[342457652,1731893446489,-25213.094,0.0001,2]
[342457653,1731893446634,-331.6257,9.9e-05,2]
[342457654,1731893446644,-22128.94598955,0.0001,2]
[342457655,1731893504580,1011.75,8.219e-05,2]